bitfinex-derivatives/quotes_SOLF0:USTF0_20250424
["timestamp","ask_amount","ask_price","bid_price","bid_amount"]
[1745464465544,6.7127,148.93,148.9,6.53476521]
[1745464465941,32.05476521,148.95,148.9,6.53476521]
[1745464466143,32.05476521,148.95,148.91,6.7128]
[1745464466837,6.712,148.94,148.91,6.7128]
[1745464467043,6.53476521,148.97,148.92,6.53476521]
[1745464467444,6.7122,148.94,148.9,8.48686521]
[1745464467645,6.53476521,148.95,148.9,15.20046521]
[1745464467836,6.53476521,148.93,148.88,6.53476521]
[1745464468843,6.7131,148.92,148.89,6.714]
[1745464469251,6.53476521,148.93,148.88,6.53476521]
[1745464469543,25.5,148.94,148.88,6.53476521]
[1745464470146,6.7124,148.93,148.9,6.7134]
[1745464470542,6.7124,148.93,148.88,6.53476521]
[1745464470844,25.5,148.94,148.91,6.713]
[1745464471640,32.2121,148.94,148.91,6.713]
[1745464475047,13.24636521,148.95,148.92,6.7127]
[1745464475246,25.5,148.97,148.9,6.53476521]
[1745464475547,6.53476521,148.96,148.9,6.53476521]
[1745464476548,6.7116,148.95,148.91,6.7128]
[1745464476743,6.53476521,148.96,148.9,6.53476521]
[1745464476945,6.53476521,148.94,148.89,6.53476521]
[1745464477448,13.24696521,148.94,148.91,6.713]
[1745464478148,6.7117,148.95,148.92,6.7127]
[1745464478450,6.53476521,148.96,148.89,6.53476521]
[1745464478849,6.7122,148.94,148.91,6.713]
[1745464479353,6.7122,148.94,148.91,13.24776521]
[1745464482947,6.53476521,148.94,148.89,6.53476521]
[1745464483253,6.7129,148.92,148.9,6.7137]
[1745464483750,6.53476521,148.94,148.87,6.53476521]
[1745464483956,6.7135,148.91,148.88,6.7144]
[1745464487257,13.24776521,148.92,148.89,6.714]
[1745464488156,6.7134,148.91,148.89,6.714]
[1745464488856,6.53476521,148.92,148.89,6.714]
[1745464489157,6.713,148.92,148.89,6.714]
[1745464491960,6.713,148.92,148.9,6.7137]
[1745464492659,32.2125,148.93,148.9,6.7137]
[1745464493761,6.7129,148.92,148.9,6.7137]
[1745464494061,6.7129,148.92,148.89,6.714]
[1745464494562,6.7134,148.91,148.88,6.7144]
[1745464494961,6.53476521,148.92,148.88,6.7144]
[1745464495260,6.7134,148.91,148.88,6.7144]
[1745464497064,6.53476521,148.92,148.88,6.53476521]
[1745464497265,25.5,148.93,148.88,6.53476521]
[1745464498267,32.2126,148.93,148.9,6.7134]
[1745464499766,32.2126,148.93,148.91,6.7132]
[1745464500065,25.5,148.93,148.91,6.7132]
[1745464500563,13.24686521,148.94,148.91,6.7132]
[1745464500863,6.53476521,148.94,148.92,6.7127]
[1745464501165,6.7115,148.95,148.92,6.7127]
[1745464503367,6.712,148.94,148.92,6.7127]
[1745464503866,33.94946521,148.96,148.92,6.7127]
[1745464504166,6.53476521,148.94,148.92,6.7127]
[1745464505269,13.24676521,148.94,148.92,6.7127]
[1745464505469,6.53476521,148.94,148.92,6.7127]
[1745464506868,13.24676521,148.94,148.91,6.7132]
[1745464508268,13.24676521,148.94,148.92,6.7128]
[1745464508471,6.7117,148.95,148.92,6.7128]
[1745464508862,6.53476521,148.98,148.92,6.53476521]
[1745464509067,25.48,148.99,148.96,6.53476521]
[1745464509264,6.53476521,149.01,148.96,6.53476521]
[1745464509465,6.7096,149.0,148.97,6.7105]
[1745464510164,6.7089,149.01,148.98,6.7101]
[1745464510570,6.7089,149.01,148.97,6.7104]
[1745464511571,6.53476521,148.99,148.94,32.01476521]
[1745464511770,6.53476521,148.97,148.92,6.53476521]
[1745464511972,6.53476521,148.97,148.91,6.0366]
[1745464512171,6.53476521,148.97,148.92,6.7126]
[1745464512172,6.7113,148.96,148.92,6.7126]
[1745464513072,6.7113,148.96,148.93,6.7123]
[1745464513272,13.24556521,148.97,148.93,6.7123]
[1745464513774,6.7111,148.96,148.93,6.7123]
[1745464514473,6.7115,148.95,148.92,6.7126]
[1745464514971,6.53476521,148.97,148.91,6.0366]
[1745464515274,6.7113,148.96,148.93,6.7123]
[1745464516875,13.24536521,148.97,148.94,6.7117]
[1745464517973,13.24536521,148.97,148.93,6.7122]
[1745464518278,6.7111,148.96,148.93,6.7122]
[1745464521071,6.7119,148.94,148.9,6.53476521]
[1745464521474,6.7119,148.94,148.91,6.7132]
[1745464521974,6.7124,148.93,148.91,6.7132]
[1745464522473,6.7121,148.94,148.91,6.7132]
[1745464522680,6.53476521,148.95,148.92,6.7128]
[1745464523377,6.7119,148.94,148.91,6.7131]
[1745464524478,6.53476521,148.95,148.91,6.7131]
[1745464525078,13.24636521,148.95,148.92,6.7127]
[1745464527078,6.53476521,148.93,148.88,6.53476521]
[1745464527277,6.53476521,148.93,148.87,25.48]
[1745464527777,13.24746521,148.93,148.9,6.7134]
[1745464528381,13.24746521,148.93,148.91,6.7132]
[1745464528681,6.53476521,148.93,148.91,6.7132]
[1745464529778,6.53476521,148.93,148.92,6.7128]
[1745464529976,25.46,148.94,148.9,6.53476521]
[1745464530280,25.46,148.97,148.95,6.7113]
[1745464530482,25.46,148.97,148.92,6.53476521]
[1745464531082,32.1706,148.97,148.94,6.7116]
[1745464531277,25.46,148.97,148.94,6.7116]
[1745464531483,6.53476521,148.96,148.9,6.53476521]
[1745464532381,13.24606521,148.96,148.93,6.7121]
[1745464532984,13.24606521,148.96,148.94,6.7119]
[1745464534081,25.46,149.01,148.94,6.53476521]
[1745464534283,25.46,149.01,148.88,2.0816]
[1745464534284,25.46,149.01,148.96,6.53476521]
[1745464534777,25.46,149.01,148.98,6.53476521]
[1745464535080,1.8833,149.05,148.98,6.53476521]
[1745464535081,31.99476521,149.04,148.98,6.53476521]
[1745464535482,38.70246521,149.04,149.0,6.7088]
[1745464535681,31.99476521,149.04,148.98,6.53476521]
[1745464536185,6.7081,149.03,148.99,6.7094]
[1745464537382,31.99476521,149.04,148.98,6.53476521]
[1745464537684,31.99476521,149.07,149.02,6.53476521]
[1745464539282,31.99476521,149.07,149.04,6.7074]
[1745464539883,6.53476521,149.07,149.04,6.7074]
[1745464540084,13.24086521,149.07,149.04,6.7074]
[1745464540383,6.53476521,149.07,149.04,6.7074]
[1745464540587,2.0597,149.17,149.07,6.706]
[1745464540588,32.1647,149.11,149.07,6.706]
[1745464540786,6.53476521,149.1,149.04,6.53476521]
[1745464540987,6.53476521,149.06,149.0,2.0015]
[1745464541183,6.53476521,149.03,149.0,6.7089]
[1745464541886,6.53476521,149.03,148.97,8.54186521]
[1745464542286,13.24276521,149.03,148.99,6.7093]
[1745464543088,6.7076,149.04,149.0,6.7092]
[1745464543387,25.46,149.06,148.99,10.24222747]
[1745464544078,6.7077,149.04,149.01,6.7085]
[1745464545987,6.7071,149.05,149.02,6.7083]
[1745464546288,25.46,149.06,148.99,10.24222747]
[1745464546590,35.70222747,149.06,148.97,12.24932747]
[1745464547190,35.70222747,149.06,149.0,6.7091]
[1745464547684,6.7077,149.04,149.0,6.7091]
[1745464547888,35.70222747,149.06,148.99,6.7095]
[1745464548290,6.7078,149.04,148.97,12.24932747]
[1745464548484,6.7078,149.04,149.0,6.7091]
[1745464548680,6.7078,149.04,148.97,12.24932747]
[1745464549288,6.7078,149.04,149.01,6.7086]
[1745464549591,25.46,149.06,148.99,10.24222747]
[1745464549890,25.46,149.06,149.01,6.7087]
[1745464550188,6.707,149.05,149.01,6.7087]
[1745464550386,6.707,149.05,148.99,10.24222747]
[1745464552091,6.707,149.05,149.02,6.7082]
[1745464552586,25.46,149.09,149.01,35.70222747]
[1745464552791,25.46,149.09,149.03,10.24222747]
[1745464553490,6.7059,149.08,149.05,6.7067]
[1745464553795,6.7059,149.08,149.03,12.22372747]
[1745464554394,25.46,149.09,149.03,12.22372747]
[1745464554693,25.46,149.12,149.07,6.7058]
[1745464555194,6.705,149.1,149.07,6.7058]
[1745464555692,6.705,149.1,149.06,6.7063]
[1745464557395,6.7052,149.09,149.06,6.7063]
[1745464559998,6.7052,149.09,149.07,6.7061]
[1745464560296,6.7049,149.1,149.07,6.7061]
[1745464560496,25.46,149.12,149.06,6.7063]
[1745464560893,6.7046,149.11,149.06,6.7063]
[1745464561097,25.46,149.12,149.06,6.7063]
[1745464561297,25.46,149.12,149.07,6.706]
[1745464561496,6.705,149.1,149.07,6.706]
[1745464561694,25.46,149.12,149.07,6.706]
[1745464561999,25.46,149.12,149.06,6.7063]
[1745464562201,6.7053,149.09,149.06,6.7063]
[1745464562695,25.46,149.12,149.03,14.25462747]
[1745464562898,10.24222747,149.09,149.0,25.44]
[1745464563095,25.44,149.08,149.0,25.44]
[1745464563296,31.99259053,149.08,149.02,6.55259053]
[1745464563596,25.44,149.08,149.02,6.55259053]
[1745464563792,6.7056,149.08,149.06,6.55259053]
[1745464564090,25.44,149.11,149.06,6.55259053]
[1745464564298,25.44,149.11,149.1,6.55259053]
[1745464564491,31.99259053,149.14,149.1,6.55259053]
[1745464564688,25.44,149.14,149.1,6.55259053]
[1745464564896,25.44,149.14,149.12,6.7038]
[1745464565090,25.44,149.14,149.12,13.25639053]
[1745464565302,25.44,149.17,149.12,6.55259053]
[1745464565496,25.44,149.17,149.14,6.55259053]
[1745464566196,6.7025,149.15,149.14,6.55259053]
[1745464566699,25.44,149.17,149.14,6.55259053]
[1745464567298,25.44,149.17,149.12,6.7036]
[1745464567503,6.7026,149.15,149.12,6.7036]
[1745464568003,25.44,149.17,149.09,16.0896892]
[1745464568404,25.44,149.17,149.11,6.704]
[1745464569304,6.7028,149.15,149.11,6.704]
[1745464569505,25.44,149.17,149.11,6.704]
[1745464569904,6.7032,149.14,149.11,6.704]
[1745464572400,35.6636892,149.17,149.09,3.9193]
[1745464572703,35.6636892,149.17,149.07,35.6436892]
[1745464573708,6.7045,149.11,149.08,6.7054]
[1745464574806,6.704,149.12,149.09,6.7051]
[1745464575106,25.42,149.16,149.09,10.2236892]
[1745464575307,6.7025,149.15,149.12,6.7034]
[1745464575704,25.42,149.16,149.1,1.901]
[1745464576008,6.7029,149.14,149.11,6.704]
[1745464577711,25.42,149.16,149.07,35.6436892]
[1745464578210,35.6436892,149.16,149.09,6.705]
[1745464578706,6.7038,149.13,149.09,6.705]
[1745464579108,35.6436892,149.16,149.09,6.705]
[1745464579307,35.6436892,149.16,149.08,6.7053]
[1745464579510,6.7042,149.12,149.07,35.6436892]
[1745464580313,6.7042,149.12,149.09,6.7049]
[1745464580913,35.6436892,149.16,149.07,35.6436892]
[1745464581110,25.42,149.16,149.07,35.6436892]
[1745464581519,6.7033,149.14,149.1,6.7044]
[1745464583417,25.42,149.16,149.1,6.7044]
[1745464584118,6.7035,149.13,149.1,6.7044]
[1745464584318,35.6436892,149.16,149.09,6.7049]
[1745464585220,35.6436892,149.16,149.1,6.7046]
[1745464585517,35.6436892,149.16,149.07,35.6436892]
[1745464586118,6.7042,149.12,149.09,6.705]
[1745464588120,6.7036,149.13,149.1,6.7047]
[1745464589815,6.7036,149.13,149.11,6.7042]
[1745464590019,6.7031,149.14,149.11,6.7042]
[1745464595019,6.7035,149.13,149.1,6.7045]
[1745464595823,6.7031,149.14,149.11,6.7042]
[1745464597825,6.7034,149.13,149.1,6.7045]
[1745464598722,6.54650324,149.11,149.07,25.42]
[1745464598926,15.3681,149.2,149.04,2.0792]
[1745464598927,6.54650324,149.09,149.04,2.0792]
[1745464599123,6.54650324,149.09,149.02,6.54650324]
[1745464599325,6.54650324,149.07,149.02,6.54650324]
[1745464599520,6.54650324,149.07,149.01,25.42]
[1745464599725,6.707,149.05,149.02,6.7081]
[1745464600025,6.54650324,149.07,149.01,25.42]
[1745464600226,13.25270324,149.07,149.04,6.7071]
[1745464600827,13.25270324,149.07,149.02,13.25450324]
[1745464602332,6.7067,149.06,149.02,13.25450324]
[1745464602829,6.54650324,149.07,149.02,6.54650324]
[1745464603033,6.7058,149.08,149.04,13.25380324]
[1745464603733,6.7061,149.07,149.04,13.25380324]
[1745464604030,6.7061,149.07,149.04,6.54650324]
[1745464604237,6.7065,149.06,149.04,6.54650324]
[1745464604740,6.7073,149.05,149.02,6.54650324]
[1745464606037,6.7073,149.05,149.02,13.25480324]
[1745464606238,6.7066,149.06,149.02,13.25480324]
[1745464606938,13.25260324,149.07,149.03,6.7076]
[1745464607136,13.25260324,149.07,149.02,6.54650324]
[1745464608241,13.25260324,149.07,149.04,6.7073]
[1745464608536,13.25260324,149.07,149.02,6.54650324]
[1745464608940,13.25260324,149.07,149.03,6.7077]
[1745464609440,6.54650324,149.07,149.03,6.7077]
[1745464609741,6.54650324,149.07,149.04,6.7074]
[1745464609939,6.54650324,149.07,149.02,6.54650324]
[1745464610140,6.7066,149.06,149.02,6.54650324]
[1745464610342,6.54650324,149.07,149.0,6.54650324]
[1745464610738,6.54650324,149.05,149.01,6.7083]
[1745464611342,6.7076,149.04,149.01,6.7083]
[1745464611542,6.54650324,149.07,149.0,6.54650324]
[1745464611743,6.54650324,149.07,149.02,6.54650324]
[1745464612244,13.25290324,149.07,149.04,6.7072]
[1745464613043,6.7066,149.06,149.03,6.7077]
[1745464613541,13.25270324,149.07,149.04,6.7074]
[1745464614940,6.7065,149.06,149.03,6.7077]
[1745464615144,6.54650324,149.07,149.02,6.54650324]
[1745464615447,6.54650324,149.05,149.0,6.54650324]
[1745464615836,6.54650324,149.05,149.0,13.25550324]
[1745464616039,6.54650324,149.03,148.99,27.4437]
[1745464616241,6.54650324,149.03,148.99,2.0237]
[1745464617648,6.7084,149.02,148.99,8.733]
[1745464618449,6.7092,149.0,148.97,6.7104]
[1745464618744,6.54650324,149.04,148.98,6.54650324]
[1745464619447,6.7082,149.03,149.0,6.7091]
[1745464619746,6.54650324,149.04,148.98,6.54650324]
[1745464619946,6.7084,149.02,148.99,6.7092]
[1745464620248,6.54650324,149.04,148.98,6.54650324]
[1745464620446,32.1267,149.06,149.03,6.7078]
[1745464621253,25.42,149.06,149.04,6.7072]
[1745464621643,6.7062,149.07,149.04,6.7072]
[1745464622648,32.1253,149.09,149.06,6.7065]
[1745464622948,25.42,149.09,149.04,6.54650324]
[1745464623150,6.7044,149.11,149.08,6.7053]
[1745464623348,31.96650324,149.12,149.06,6.54650324]
[1745464623646,6.54650324,149.1,149.06,6.54650324]
[1745464624256,6.7054,149.09,149.06,6.54650324]
[1745464625148,6.7054,149.09,149.06,13.25300324]
[1745464626551,13.25140324,149.1,149.07,6.706]
[1745464626849,6.54650324,149.1,149.06,6.54650324]
[1745464627148,6.7057,149.08,149.05,6.7068]
[1745464627349,6.54650324,149.1,149.04,31.96650324]
[1745464627649,6.54650324,149.1,149.04,6.54650324]
[1745464627850,6.706,149.08,149.05,6.7069]
[1745464628048,6.706,149.08,149.04,6.54650324]
[1745464628351,6.7062,149.07,149.04,13.25360324]
[1745464628551,6.54650324,149.1,149.04,6.54650324]
[1745464629448,6.54650324,149.08,149.04,6.54650324]
[1745464629952,6.7062,149.07,149.04,6.54650324]
[1745464631054,13.25230324,149.08,149.04,6.54650324]
[1745464631552,6.7058,149.08,149.05,6.7069]
[1745464632147,6.7053,149.09,149.06,6.7064]
[1745464633051,6.7053,149.09,149.05,6.7068]
[1745464633550,6.7057,149.08,149.05,6.7068]
[1745464634253,6.7057,149.08,149.04,13.25370324]
[1745464634653,6.7062,149.07,149.04,13.25370324]
[1745464635453,6.54650324,149.06,149.01,29.5184]
[1745464635650,6.54650324,149.04,149.0,6.54650324]
[1745464635950,6.709,149.01,148.98,6.71]
[1745464636256,6.54650324,149.0,148.94,6.54650324]
[1745464636455,13.25690324,148.98,148.94,6.54650324]
[1745464637255,6.7104,148.98,148.93,25.4]
[1745464637752,6.7104,148.98,148.95,6.7112]
[1745464638153,10.24986177,149.01,148.93,25.4]
[1745464638354,25.4,149.02,148.97,6.7102]
[1745464638554,6.7095,149.0,148.97,6.7102]
[1745464639152,6.7097,148.99,148.96,6.7109]
[1745464639357,6.7097,148.99,148.93,25.4]
[1745464639358,10.24986177,149.01,148.93,25.4]
[1745464639762,6.7101,148.99,148.95,6.7114]
[1745464640350,6.7101,148.99,148.96,6.711]
[1745464640555,25.4,149.02,148.94,10.24986177]
[1745464640956,32.1085,149.02,148.94,10.24986177]
[1745464642058,6.7089,149.01,148.94,10.24986177]
[1745464642258,25.4,149.02,148.94,10.24986177]
[1745464642455,25.4,149.02,148.98,6.7101]
[1745464643158,6.7089,149.01,148.98,6.7101]
[1745464643358,25.4,149.02,148.99,6.7096]
[1745464643559,25.4,149.02,148.96,10.24986177]
[1745464643761,25.4,149.02,148.97,3.9067]
[1745464644262,25.42,149.05,148.98,10.24986177]
[1745464644653,32.1271,149.05,149.02,6.7079]
[1745464644858,25.42,149.05,148.98,12.16386177]
[1745464645966,32.1273,149.05,149.02,6.7082]
[1745464646667,25.42,149.05,148.98,12.16386177]
[1745464646866,25.42,149.05,148.98,1.914]
[1745464647568,6.7081,149.03,149.0,6.7092]
[1745464648265,6.7076,149.04,149.0,6.7092]
[1745464648465,6.7076,149.04,149.01,6.7087]
[1745464648967,32.1272,149.05,149.02,6.7083]
[1745464649267,25.42,149.05,148.98,12.16386177]
[1745464649464,25.4,149.08,149.0,10.24986177]
[1745464649763,25.4,149.09,149.02,10.24986177]
[1745464650369,6.7059,149.08,149.05,6.7069]
[1745464650570,25.4,149.09,149.02,10.24986177]
[1745464650760,25.4,149.09,149.03,3.9707]
[1745464650964,6.7047,149.1,149.03,3.9707]
[1745464651168,25.4,149.12,149.04,10.24986177]
[1745464651569,25.4,149.12,149.04,12.23546177]
[1745464651972,6.7045,149.11,149.08,6.7055]
[1745464653972,25.4,149.12,149.05,25.4]
[1745464654766,6.705,149.1,149.07,6.7058]
[1745464654971,25.4,149.12,149.05,25.4]
[1745464655472,6.7045,149.11,149.08,6.7052]
[1745464655969,32.104,149.12,149.08,6.7052]
[1745464656276,25.4,149.15,149.08,10.24986177]
[1745464656772,32.1029,149.15,149.08,10.24986177]
[1745464657374,32.1029,149.15,149.1,6.7047]
[1745464658078,6.703,149.14,149.1,6.7047]
[1745464658271,25.4,149.15,149.09,6.705]
[1745464659276,6.7036,149.13,149.09,6.705]
[1745464659571,6.7036,149.13,149.1,6.7044]
[1745464659778,25.4,149.15,149.08,10.24986177]
[1745464660174,6.703,149.14,149.11,6.7039]
[1745464660375,25.4,149.15,149.08,10.24986177]
[1745464660575,25.4,149.15,149.09,29.2367]
[1745464660972,32.1026,149.15,149.12,6.7035]
[1745464661378,6.7026,149.15,149.12,6.7035]
[1745464661980,6.7024,149.16,149.13,6.7033]
[1745464663678,6.7017,149.17,149.14,6.7026]
[1745464667280,6.7017,149.17,149.14,13.24523071]
[1745464667784,6.7017,149.17,149.14,13.1746884]
[1745464668982,6.7017,149.17,149.15,6.7024]
[1745464669181,6.7017,149.17,149.14,6.54263071]
[1745464669486,6.7021,149.16,149.13,13.24563071]
[1745464669780,6.7017,149.17,149.13,6.54263071]
[1745464670078,25.38,149.18,149.1,2.0806]
[1745464670283,6.54263071,149.15,149.09,35.77933071]
[1745464670678,6.54263071,149.17,149.11,6.54263071]
[1745464671679,6.54263071,149.17,149.13,6.54263071]
[1745464671982,6.7024,149.16,149.13,13.24583071]
[1745464673079,6.7025,149.15,149.13,6.54263071]
[1745464673382,6.7025,149.15,149.12,6.7036]
[1745464674985,6.7025,149.15,149.13,6.7033]
[1745464675283,6.7025,149.15,149.11,6.54263071]
[1745464675483,6.7025,149.15,149.12,6.7035]
[1745464675884,6.7022,149.16,149.11,6.54263071]
[1745464676185,6.7022,149.16,149.13,6.7032]
[1745464676382,6.54263071,149.17,149.13,6.7032]
[1745464677184,6.54263071,149.17,149.11,6.54263071]
[1745464678086,6.7022,149.16,149.13,6.7033]
[1745464678384,6.54263071,149.17,149.13,6.54263071]
[1745464678785,6.7017,149.17,149.14,6.7026]
[1745464681288,31.92263071,149.18,149.13,6.54263071]
[1745464682386,31.92263071,149.18,149.13,13.24593071]
[1745464682889,6.7025,149.15,149.13,6.54263071]
[1745464683188,31.92263071,149.18,149.13,6.54263071]
[1745464683390,6.7023,149.16,149.13,13.24573071]
[1745464685092,31.92263071,149.18,149.14,6.7029]
[1745464685093,6.7018,149.17,149.14,6.7029]
[1745464686096,6.7021,149.16,149.14,6.7029]
[1745464686295,31.92263071,149.18,149.13,6.54263071]
[1745464686795,6.7026,149.15,149.13,6.54263071]
[1745464687300,6.54263071,149.16,149.11,6.54263071]
[1745464687492,6.54263071,149.14,149.09,31.94263071]
[1745464687997,6.7041,149.12,149.09,13.24753071]
[1745464688696,6.7041,149.12,149.1,6.7047]
[1745464688896,6.7035,149.13,149.1,6.7047]
[1745464689098,6.54263071,149.14,149.09,6.54263071]
[1745464689399,6.7035,149.13,149.1,6.7044]
[1745464689801,6.54263071,149.14,149.1,6.7044]
[1745464690100,6.7038,149.12,149.09,13.24753071]
[1745464690294,6.54263071,149.14,149.09,6.54263071]
[1745464690900,6.54263071,149.14,149.1,6.7046]
[1745464691199,31.90263071,149.14,149.1,6.7046]
[1745464691397,31.90263071,149.14,149.09,6.54263071]
[1745464691599,6.54263071,149.1,149.03,25.36]
[1745464691798,6.54263071,149.08,149.03,31.90263071]
[1745464691997,6.7061,149.07,149.04,6.7072]
[1745464692502,6.54263071,149.08,149.03,31.90263071]
[1745464692703,6.54263071,149.08,149.01,8.46693071]
[1745464693200,6.7068,149.06,149.03,6.7078]
[1745464693401,6.54263071,149.08,149.01,8.46693071]
[1745464693802,6.7064,149.07,149.03,6.7075]
[1745464693991,6.7064,149.07,149.01,8.46693071]
[1745464695198,6.7064,149.07,149.04,6.7073]
[1745464695993,6.54263071,149.08,149.02,6.708]
[1745464697103,6.54263071,149.06,149.02,6.708]
[1745464697504,6.54263071,149.04,149.0,27.3848]
[1745464697701,6.7079,149.03,149.0,27.3848]
[1745464697900,6.7079,149.03,149.0,2.0248]
[1745464698205,13.25023071,149.04,149.0,8.7336]
[1745464698404,6.54263071,149.04,149.0,6.7088]
[1745464699105,25.38,149.06,149.02,6.54263071]
[1745464699305,6.54263071,149.08,149.02,6.54263071]
[1745464699705,13.24833071,149.08,149.02,10.63363071]
[1745464700403,13.24833071,149.08,149.05,6.7069]
[1745464700706,6.54263071,149.08,149.05,6.7069]
[1745464701003,6.54263071,149.08,149.06,6.7064]
[1745464704107,13.24823071,149.08,149.05,6.7068]
[1745464704408,6.54263071,149.06,149.02,4.091]
[1745464705001,6.54263071,149.06,149.03,6.7078]
[1745464706107,6.54263071,149.06,149.04,6.7074]
[1745464706806,6.54263071,149.06,149.03,6.7077]
[1745464707008,13.24923071,149.06,149.03,6.7077]
[1745464708106,6.7071,149.05,149.02,6.7081]
[1745464710809,6.7074,149.04,149.01,13.25113071]
[1745464712905,6.7074,149.04,149.01,6.7085]
[1745464715210,6.7074,149.04,149.02,6.7083]
[1745464715907,6.7072,149.05,149.02,6.7083]
[1745464717112,6.7074,149.04,149.02,6.7083]
[1745464718812,6.7072,149.05,149.02,6.7083]
[1745464723415,6.7076,149.04,149.01,6.7086]
[1745464723914,6.54263071,149.06,148.99,6.54263071]
[1745464724119,6.7072,149.05,149.02,6.7081]
[1745464727122,6.7074,149.04,149.02,6.7081]
[1745464727323,6.54263071,149.06,149.02,6.7081]
[1745464727824,6.7072,149.05,149.02,6.7081]
[1745464728825,6.7075,149.04,149.02,6.7081]
[1745464731027,6.7071,149.05,149.02,6.7081]
[1745464733432,6.7076,149.04,149.01,6.7085]
[1745464733935,13.25023071,149.04,149.01,6.7085]
[1745464734532,6.708,149.03,149.01,6.7085]
[1745464735936,13.25023071,149.04,149.01,6.7085]
[1745464736536,13.25023071,149.04,149.02,6.7082]
[1745464738037,6.7071,149.05,149.03,6.7078]
[1745464739432,6.54263071,149.06,149.01,6.54263071]
[1745464739638,25.38,149.09,148.99,1.9656]
[1745464739639,31.90263071,149.13,149.05,6.54263071]
[1745464739834,31.90263071,149.13,149.08,6.54263071]
[1745464740139,562.84263071,149.16,149.1,6.54263071]
[1745464740639,6.7032,149.14,149.11,6.704]
[1745464743639,6.7034,149.13,149.1,13.24713071]
[1745464743837,31.90263071,149.16,149.1,6.54263071]
[1745464744042,6.54263071,149.12,149.06,3.8662]
[1745464744242,6.7061,149.07,149.04,32.0471]
[1745464744540,6.54263071,149.06,149.02,1.9856]
[1745464744742,6.54263071,149.06,149.02,8.6937]
[1745464744743,6.707,149.05,149.02,8.6937]
[1745464744946,6.707,149.05,149.02,6.7081]
[1745464748333,6.7075,149.04,149.01,31.88263071]
[1745464748541,6.54263071,149.06,149.01,31.88263071]
[1745464748742,31.88263071,149.08,149.03,6.54263071]
[1745464749048,6.7063,149.07,149.04,6.7073]
[1745464751147,6.7065,149.06,149.03,13.25033071]
[1745464751644,6.7065,149.06,149.03,6.54263071]
[1745464751845,6.7063,149.07,149.04,6.7074]
[1745464753045,6.7066,149.06,149.03,13.25033071]
[1745464753248,6.54263071,149.04,148.99,6.54263071]
[1745464754348,6.7083,149.03,149.0,6.7091]
[1745464754746,6.7083,149.03,148.99,6.54263071]
[1745464755044,6.7083,149.03,149.0,6.7091]
[1745464755248,13.25023071,149.04,148.99,6.54263071]
[1745464755947,13.25023071,149.04,149.01,6.7087]
[1745464756139,25.34,149.08,149.03,6.54263071]
[1745464756738,32.0459,149.08,149.05,6.7069]
[1745464757449,32.0459,149.08,149.04,6.7072]
[1745464757450,6.7061,149.07,149.04,6.7072]
[1745464758148,25.34,149.08,149.03,6.54263071]
[1745464758351,6.54263071,149.09,149.05,6.54263071]
[1745464758848,13.24803071,149.09,149.06,6.7062]
[1745464759350,6.7048,149.1,149.07,6.7058]
[1745464759649,31.88263071,149.11,149.07,6.54263071]
[1745464760449,38.58713071,149.11,149.08,6.7052]
[1745464760649,6.54263071,149.09,149.04,6.54263071]
[1745464761049,6.7059,149.08,149.05,6.7067]
[1745464761646,13.24803071,149.09,149.06,6.7065]
[1745464761847,6.7054,149.09,149.06,6.54263071]
[1745464762347,25.34,149.11,149.08,6.54263071]
[1745464762644,556.56,149.14,149.1,6.54263071]
[1745464762851,32.0431,149.14,149.11,6.7042]
[1745464763343,32.0431,149.14,149.12,13.24643071]
[1745464763550,6.54263071,149.16,149.12,13.24643071]
[1745464763551,6.7026,149.15,149.12,13.24643071]
[1745464763748,25.34,149.17,149.12,6.54263071]
[1745464764050,6.7021,149.16,149.13,6.7031]
[1745464764647,6.7021,149.16,149.12,13.24623071]
[1745464765052,6.7025,149.15,149.12,13.24623071]